bitfinex/quotes_ETHUSD_20250507
["timestamp","ask_amount","ask_price","bid_price","bid_amount"]
[1746607340118,5.42300891,1844.0,1843.6,5.47814385]
[1746607340540,9.14598323,1844.1,1843.6,10.90208353]
[1746607340730,9.14598323,1844.1,1843.7,5.42386848]
[1746607341335,0.39734505,1844.2,1843.7,5.4238759]
[1746607341517,5.81975722,1844.2,1843.9,5.4232497]
[1746607341841,5.81975722,1844.2,1843.8,5.42342642]
[1746607342541,5.81975722,1844.2,1843.8,10.84680693]
[1746607342703,5.81975722,1844.2,1843.8,5.42341134]
[1746607342908,5.81975722,1844.2,1843.8,5.4233988]
[1746607343331,5.81975722,1844.2,1843.9,5.42327829]
[1746607344460,5.81975722,1844.2,1844.0,0.14832161]
[1746607344662,7.25202135,1844.2,1844.0,0.14832161]
[1746607344946,7.25202135,1844.2,1843.8,10.84679689]
[1746607345114,5.81975722,1844.2,1844.1,0.14772771]
[1746607345638,5.81975722,1844.2,1843.8,5.42337327]
[1746607345823,5.81975722,1844.2,1843.9,0.14891559]
[1746607346026,5.81975722,1844.2,1843.8,5.42337327]
[1746607346227,5.81975722,1844.2,1843.9,0.14891559]
[1746607346444,6.61384551,1844.2,1843.8,5.42337327]
[1746607346639,6.61384551,1844.2,1843.9,0.14891559]
[1746607346839,6.61384551,1844.2,1843.8,5.42337327]
[1746607347040,6.61384551,1844.2,1843.9,0.14891559]
[1746607347346,1.19143334,1844.2,1843.9,5.42327719]
[1746607347554,1.19143334,1844.2,1844.0,0.14832161]
[1746607347850,6.61385481,1844.2,1844.0,0.14832161]
[1746607348449,6.61385481,1844.2,1843.8,10.84680365]
[1746607348651,5.81976652,1844.2,1843.9,0.14891559]
[1746607348843,5.81976652,1844.2,1843.8,10.84680365]
[1746607349016,5.81976652,1844.2,1843.9,0.14891559]
[1746607349220,5.81976652,1844.2,1843.9,5.42323071]
[1746607349420,0.39734505,1844.2,1844.0,0.14832161]
[1746607349742,7.69058687,1844.1,1844.0,0.14832161]
[1746607350055,7.69058687,1844.1,1843.7,5.42370254]
[1746607350252,7.69058687,1844.1,1843.5,5.677]
[1746607350253,0.8239,1844.0,1843.8,0.14950962]
[1746607350556,6.24700273,1844.0,1843.6,10.84813645]
[1746607350720,6.24700273,1844.0,1843.9,0.14891559]
[1746607350919,6.24700273,1844.0,1843.7,5.42386344]
[1746607351152,6.24700273,1844.0,1843.9,0.14891559]
[1746607351657,6.24700273,1844.0,1843.7,5.42386344]
[1746607351833,7.09849175,1844.0,1843.8,0.14963854]
[1746607352036,7.09849175,1844.0,1843.6,5.42396533]
[1746607352355,7.09849175,1844.0,1843.7,0.15023264]
[1746607352654,7.09849175,1844.0,1843.6,5.42396533]
[1746607352858,7.09849175,1844.0,1843.7,0.15023264]
[1746607353260,7.09849175,1844.0,1843.6,5.4239454]
[1746607353459,7.09849175,1844.0,1843.8,0.14963854]
[1746607353871,7.09849175,1844.0,1843.6,5.4239454]
[1746607354059,7.09849175,1844.0,1843.9,0.1490445]
[1746607354355,7.09849175,1844.0,1843.6,5.4239454]
[1746607354557,7.09849175,1844.0,1843.9,0.1490445]
[1746607354757,7.09849175,1844.0,1843.7,5.42384588]
[1746607354952,7.09849175,1844.0,1843.9,0.1490445]
[1746607355175,7.09849175,1844.0,1843.8,0.14963854]
[1746607355335,7.09849175,1844.0,1843.9,0.1490445]
[1746607355663,7.09849175,1844.0,1843.6,10.84791099]
[1746607355864,7.09849175,1844.0,1843.9,0.1490445]
[1746607356053,7.09849175,1844.0,1843.6,5.4239454]
[1746607356385,7.09849175,1844.0,1843.7,0.15023264]
[1746607356675,7.09849175,1844.0,1843.6,5.4239454]
[1746607356973,7.09849175,1844.0,1843.8,0.14963854]
[1746607357126,7.09849175,1844.0,1843.7,0.15023264]
[1746607357453,7.09849175,1844.0,1843.8,0.14963854]
[1746607357654,7.09849175,1844.0,1843.7,5.4238244]
[1746607358056,1.67538902,1844.0,1843.8,0.14963854]
[1746607358256,7.09844743,1844.0,1843.8,0.14963854]
[1746607360728,7.09844743,1844.0,1843.6,5.4239454]
[1746607360932,7.09844743,1844.0,1843.9,0.1490445]
[1746607361165,7.09844743,1844.0,1843.6,5.4239454]
[1746607361366,7.09844743,1844.0,1843.9,0.1490445]
[1746607361569,7.09844743,1844.0,1843.6,5.4239454]
[1746607361762,7.09844743,1844.0,1843.9,0.1490445]
[1746607361967,7.09844743,1844.0,1843.6,10.84792094]
[1746607362138,7.09844743,1844.0,1843.9,0.1490445]
[1746607362340,7.09844743,1844.0,1843.6,5.4239454]
[1746607362671,7.09844743,1844.0,1843.6,10.84794352]
[1746607362855,7.09844743,1844.0,1843.7,0.15023264]
[1746607363054,7.09844743,1844.0,1843.6,5.4239454]
[1746607363288,7.09844743,1844.0,1843.7,0.15023264]
[1746607363688,7.09844743,1844.0,1843.6,5.4239454]
[1746607363867,7.09844743,1844.0,1843.8,0.14963854]
[1746607364067,7.09844743,1844.0,1843.6,10.84790325]
[1746607364266,7.09844743,1844.0,1843.7,0.15023264]
[1746607364583,7.09844743,1844.0,1843.6,5.4239454]
[1746607364765,7.09844743,1844.0,1843.8,0.14963854]
[1746607364968,7.09844743,1844.0,1843.7,0.15023264]
[1746607365154,7.09844743,1844.0,1843.9,0.1490445]
[1746607365355,7.09844743,1844.0,1843.8,0.14963854]
[1746607365657,7.09844743,1844.0,1843.9,0.1490445]
[1746607365856,7.09844743,1844.0,1843.6,5.47818099]
[1746607366151,4.54204474,1843.9,1843.7,0.15023264]
[1746607366351,0.8322,1843.8,1843.7,0.15023264]
[1746607366557,5.703,1843.9,1843.6,5.42388977]
[1746607366851,6.25530688,1844.0,1843.7,0.15010369]
[1746607367067,0.8322,1844.0,1843.6,5.42388977]
[1746607367285,0.8322,1844.0,1843.8,0.14973515]
[1746607367286,6.25535688,1844.0,1843.8,0.14973515]
[1746607367486,6.25535688,1844.0,1843.7,0.15032925]
[1746607367689,5.8198863,1844.2,1843.9,0.14914111]
[1746607367986,5.8198863,1844.2,1843.8,5.57293426]
[1746607368290,5.42240933,1844.2,1843.9,0.14885112]
[1746607368681,6.18440199,1844.3,1843.9,5.4232766]
[1746607368906,11.60674796,1844.3,1844.0,0.14825715]
[1746607369083,7.57186553,1844.3,1844.0,0.14825715]
[1746607370491,0.8,1844.2,1844.0,0.14825715]
[1746607370698,6.22241302,1844.2,1844.0,0.14825715]
[1746607370893,6.22241302,1844.2,1843.8,5.42339248]
[1746607371110,6.22241302,1844.2,1844.1,0.14766324]
[1746607371275,6.22241302,1844.2,1843.8,5.47762043]
[1746607371592,6.22241302,1844.2,1843.9,5.57213788]
[1746607371963,5.42241302,1844.2,1843.9,5.57213788]
[1746607372399,6.18438246,1844.3,1843.9,5.57213788]
[1746607373199,11.60673296,1844.3,1843.9,5.57213788]
[1746607373400,5.42242555,1844.2,1843.9,5.57213788]
[1746607374502,5.42242555,1844.2,1843.9,0.14885112]
[1746607375003,5.42242555,1844.2,1843.8,11.93690749]
[1746607375206,5.42242555,1844.2,1844.0,0.14825715]
[1746607375371,5.42242555,1844.2,1843.9,0.14885112]
[1746607375715,5.42242555,1844.2,1844.0,0.13590239]
[1746607376200,5.42242555,1844.2,1843.8,10.84677273]
[1746607376394,5.42242555,1844.2,1844.1,0.13530848]
[1746607376596,5.42242555,1844.2,1843.8,10.84677273]
[1746607376794,5.82213019,1844.2,1844.1,0.13530848]
[1746607376995,5.82213019,1844.2,1843.9,5.42325462]
[1746607377397,5.82213019,1844.2,1844.0,0.13590239]
[1746607380002,5.82213019,1844.2,1843.8,5.42347816]
[1746607380204,5.82213019,1844.2,1844.1,0.13453531]
[1746607380403,5.82213019,1844.2,1843.8,5.42347816]
[1746607380710,5.82213019,1844.2,1843.8,5.47770621]
[1746607380876,5.82213019,1844.2,1843.9,0.13572319]
[1746607381076,5.42242555,1844.2,1843.8,5.47770621]
[1746607381276,0.50789795,1844.1,1843.9,0.13572319]
[1746607381576,0.50789795,1844.0,1843.8,5.47760912]
[1746607381777,0.50789795,1844.0,1843.9,5.42328759]
[1746607382407,0.50789795,1844.0,1843.8,5.42338985]
[1746607382709,0.50789795,1843.9,1843.8,5.42338985]
[1746607382913,0.50789795,1843.9,1843.8,5.47761799]
[1746607386016,0.50789795,1843.9,1843.7,5.42365854]
[1746607386307,7.69047892,1844.2,1843.8,5.42358173]
[1746607386510,0.50764613,1844.1,1843.8,5.42358173]
[1746607387012,0.50764613,1844.1,1843.8,10.84699338]
[1746607387208,0.50764613,1844.0,1843.8,10.84699338]
[1746607387627,0.50764613,1844.0,1843.9,5.42328759]
[1746607387784,0.50764613,1844.0,1843.9,5.47751661]
[1746607388125,0.40764613,1844.0,1843.9,23.47751661]
[1746607388419,0.40764613,1844.0,1843.9,23.42328759]
[1746607389512,0.40764613,1844.0,1843.9,23.55849529]
[1746607389700,0.40764613,1844.0,1843.9,24.93586477]
[1746607389906,0.40764613,1844.0,1843.9,23.55849529]
[1746607391625,0.40764613,1844.0,1843.9,5.55849529]
[1746607392122,0.40764613,1844.0,1843.9,5.61271986]
[1746607393437,0.40764613,1844.0,1843.9,7.88060732]
[1746607394218,6.24140054,1844.6,1844.2,5.4222453]
[1746607394630,6.24140054,1844.6,1844.3,0.1325423]
[1746607394818,5.4217219,1844.5,1844.3,0.1325423]
[1746607395018,6.21871739,1844.4,1844.3,0.1325423]
[1746607398959,5.42235513,1844.3,1843.9,11.96708955]
[1746607399140,5.4224118,1844.2,1843.8,5.42340139]
[1746607399444,7.69013394,1844.3,1843.9,5.42325164]
[1746607400268,13.11250527,1844.3,1843.9,5.42325164]
[1746607400428,7.69013394,1844.3,1843.9,5.42325164]
[1746607400829,7.69013394,1844.3,1843.7,5.649]
[1746607400830,6.21043715,1844.1,1843.7,5.649]
[1746607401150,0.7876,1844.1,1843.8,5.42347085]
[1746607402053,0.50823397,1844.0,1843.8,5.42347085]
[1746607402765,0.50823397,1843.9,1843.8,5.42347085]
[1746607404349,0.50823397,1843.9,1843.8,5.55830626]
[1746607404552,0.50823397,1843.9,1843.8,0.13483541]
[1746607404757,0.50823397,1843.9,1843.8,18.13483541]
[1746607406671,0.8069,1845.3,1843.9,6.266]
[1746607406856,6.22619051,1845.3,1844.2,5.42240537]
[1746607407045,0.8069,1845.3,1844.8,5.42039388]
[1746607407241,0.8069,1845.3,1844.9,5.42020475]
[1746607407441,0.8069,1845.3,1844.9,5.54850932]
[1746607408764,0.8069,1845.3,1844.9,5.54845424]
[1746607410273,0.8069,1845.3,1845.0,5.41993096]
[1746607410443,0.8069,1845.3,1844.9,5.54851593]
[1746607410638,1.65626678,1845.3,1845.1,0.12711799]
[1746607410843,1.65626678,1845.3,1845.2,5.41946672]
[1746607411101,0.8069,1845.3,1845.2,5.54599151]
[1746607411856,0.8029,1845.5,1845.2,5.54599082]
[1746607412068,0.8029,1845.5,1845.2,23.54599082]
[1746607412579,0.8029,1845.5,1845.2,5.54599082]
[1746607413272,0.8029,1845.5,1845.3,5.41917181]
[1746607413659,5.41779465,1845.8,1845.4,5.41876015]
[1746607413660,6.23063987,1845.8,1845.4,5.41876015]
[1746607413874,5.41811346,1845.7,1845.3,5.54197537]
[1746607414079,5.41811346,1845.7,1845.3,5.54207153]
[1746607414080,3.08068746,1845.6,1845.3,5.54207153]
[1746607414252,3.08068746,1845.6,1845.3,0.12290565]
[1746607414452,8.4991548,1845.6,1845.3,0.12290565]
[1746607415309,4.47241429,1845.6,1845.3,0.12290565]
[1746607417100,0.7661,1846.3,1845.5,2.26788746]
[1746607417295,5.41667451,1846.2,1845.8,5.41759317]
[1746607417494,10.83345683,1846.2,1845.8,5.41759317]
[1746607417659,5.41667451,1846.2,1845.9,0.13885317]
[1746607417857,7.10337787,1846.2,1845.9,0.13885317]
[1746607418061,12.52015024,1846.2,1845.7,5.41780956]
[1746607418255,7.10337787,1846.2,1846.0,0.13814195]
[1746607418483,7.10337787,1846.2,1845.7,10.83558771]
[1746607418484,5.41683449,1846.1,1845.7,10.83558771]
[1746607418683,5.41683449,1846.1,1845.7,5.41776942]
[1746607419089,0.7911,1846.0,1845.7,5.41776942]
[1746607419478,0.7911,1846.0,1845.8,0.13690195]
[1746607419872,0.7911,1846.0,1845.6,10.83618738]
[1746607420089,0.7911,1846.0,1845.9,0.13622923]
[1746607420586,0.7911,1846.0,1845.6,5.41808507]
[1746607420802,6.51425166,1846.0,1845.9,0.13622923]
[1746607421101,5.41747758,1845.9,1845.5,5.41843299]
[1746607421568,6.51429693,1846.0,1845.5,5.41835377]
[1746607421953,6.51429693,1846.0,1845.4,5.585]
[1746607422179,6.51429693,1846.0,1845.5,5.41858574]
[1746607422390,5.41742624,1845.9,1845.5,5.41858574]
[1746607422599,5.41742624,1845.9,1845.5,10.8369409]
[1746607422801,6.5142832,1846.0,1845.6,5.41827856]
[1746607423374,0.025,1845.9,1845.6,5.41827856]
[1746607423574,5.44245492,1845.9,1845.5,5.41843049]
[1746607423775,5.44245492,1845.9,1845.5,5.41836627]
[1746607424069,5.4178243,1845.8,1845.4,11.00370145]
[1746607424375,6.23420161,1845.7,1845.4,5.585]
[1746607424705,6.23420161,1845.7,1845.3,5.41906925]
[1746607424904,6.23420161,1845.7,1845.3,5.47320003]
[1746607425316,6.23420161,1845.7,1845.3,5.47313679]
[1746607425618,11.65248806,1845.7,1845.3,5.41895153]
[1746607425818,6.23420161,1845.7,1845.3,5.41895153]
[1746607427535,5.41833181,1845.6,1845.2,5.41929834]
[1746607427723,6.23420161,1845.7,1845.3,5.4191633]
[1746607428036,5.41874068,1845.5,1845.1,5.41965805]
[1746607428404,5.41874068,1845.5,1845.1,10.83918843]
[1746607428608,5.41874068,1845.5,1845.2,5.4194499]
[1746607428921,5.41848418,1845.6,1845.2,5.4194499]
[1746607429106,8.5020339,1845.7,1845.3,5.41914406]
[1746607429107,8.50204488,1845.7,1845.3,5.41914406]
[1746607429308,9.89403573,1845.7,1845.3,5.41914406]
[1746607429638,15.31228981,1845.7,1845.3,5.41914406]
[1746607429820,5.41831609,1845.6,1845.2,5.4194499]
[1746607430025,5.41831609,1845.6,1845.1,5.41959218]
[1746607430026,5.41868546,1845.5,1845.1,5.41959218]
[1746607430323,6.22748315,1845.4,1845.0,11.28287517]
[1746607430629,2.26788746,1845.3,1844.6,5.863]
[1746607430842,6.22817556,1845.2,1844.8,5.42045342]
[1746607431009,5.41980441,1845.1,1844.8,5.42045342]
[1746607431330,6.22817556,1845.2,1844.8,5.42053037]
[1746607433636,5.42006285,1845.0,1844.6,11.28404766]
[1746607433936,5.42006285,1845.0,1844.6,11.28402881]
[1746607434129,5.42006285,1845.0,1844.7,5.42093155]
[1746607434334,7.68773119,1845.1,1844.7,5.42075779]
[1746607435227,7.68773119,1845.1,1844.8,18.0]
[1746607435429,5.42006463,1845.0,1844.8,18.0]
[1746607435724,6.22144798,1844.9,1844.8,18.0]
[1746607437240,3.75906252,1845.1,1844.8,18.0]
[1746607437241,9.95888901,1845.1,1844.8,18.0]
[1746607437597,5.42016284,1845.0,1844.8,18.0]
[1746607438413,5.42016284,1845.0,1844.6,11.28408354]
[1746607440947,7.69100155,1845.1,1844.7,5.42071468]
[1746607441249,6.19982649,1845.1,1844.7,5.42071468]
[1746607442212,11.61985225,1845.1,1844.7,5.42071468]
[1746607442735,6.19982649,1845.1,1844.7,5.42071468]
[1746607442922,11.6198337,1845.1,1844.7,5.42071468]
[1746607443118,5.4200871,1845.0,1844.7,5.42071468]
[1746607443445,5.4200871,1845.0,1844.6,11.28422273]
[1746607444042,8.4676541,1845.1,1844.7,5.42083756]
[1746607444255,8.4676541,1845.1,1844.6,11.28422273]
[1746607444256,3.0,1845.1,1844.6,5.863]
[1746607444560,3.0,1845.1,1844.9,5.42021886]
[1746607445521,3.0,1845.1,1844.7,5.42073746]
[1746607445844,3.0,1845.1,1844.8,5.4205309]
[1746607448140,8.41995538,1845.1,1844.7,5.42073746]
[1746607448357,6.23056483,1845.0,1844.7,5.42073746]
[1746607448557,0.8105,1845.0,1844.7,5.42073746]
[1746607449523,0.8105,1845.0,1844.7,10.84144673]
[1746607449724,0.8105,1845.0,1844.8,5.42063225]
[1746607454567,8.41995105,1845.1,1844.8,5.42063225]
[1746607455758,3.0,1845.1,1844.8,10.84111514]
[1746607456061,0.7978,1845.2,1844.9,5.42017006]
[1746607456461,3.0,1845.1,1844.8,5.42048289]
[1746607456865,3.0,1845.1,1844.8,5.4204667]
[1746607457363,3.0,1845.1,1844.8,10.84090453]
[1746607457567,3.0,1845.1,1844.8,5.42043783]
[1746607458050,3.0,1845.1,1844.8,5.42043078]
[1746607458253,3.0,1845.1,1844.9,5.42030931]
[1746607458632,0.7657,1845.4,1845.1,5.41949265]
[1746607458832,0.7657,1845.5,1845.2,5.41935153]
[1746607459034,3.7657,1845.5,1845.2,5.41935153]
[1746607459464,9.18429516,1845.5,1845.1,5.41957385]
[1746607459680,6.18429516,1845.5,1845.1,0.54737669]
[1746607459860,6.18429516,1845.5,1845.1,5.966987]
[1746607460174,5.41890458,1845.4,1845.1,0.54737669]
[1746607460332,0.8272,1845.2,1844.9,5.42010139]
[1746607460538,0.8272,1845.2,1844.9,10.84025689]
[1746607460738,0.8272,1845.2,1844.9,5.42010139]
[1746607461563,7.68713978,1845.3,1844.6,5.863]
[1746607461765,6.22171571,1845.4,1845.0,5.42002878]
[1746607461766,6.22171594,1845.4,1845.0,5.42002878]
[1746607461934,6.22171594,1845.4,1844.7,6.00723565]
[1746607462135,6.22171594,1845.4,1845.0,10.83963783]
[1746607462656,3.8027,1845.4,1845.1,5.41976001]
[1746607463447,3.8027,1845.4,1845.1,5.41959852]
[1746607463963,9.22160663,1845.4,1845.0,5.41990215]
[1746607464347,9.22160663,1845.4,1845.0,5.41984274]
[1746607464668,9.22160663,1845.4,1845.0,5.96182701]
[1746607464874,5.4191792,1845.3,1845.0,5.41984274]
[1746607465565,6.20506955,1845.2,1844.9,5.42019642]
[1746607465871,6.20506955,1845.2,1844.8,5.4204742]
[1746607466369,6.20506955,1845.2,1844.8,10.84092157]
[1746607466775,6.20506955,1845.2,1844.8,5.42044737]
[1746607466959,0.7559,1844.9,1844.6,11.28408758]
[1746607469101,0.7559,1844.9,1844.6,16.70512109]
[1746607469280,0.7559,1844.9,1844.7,5.42092436]
[1746607469476,8.46284869,1845.1,1844.7,5.4206903]
[1746607470041,6.19496123,1845.1,1844.7,10.84143396]
[1746607470444,6.19496123,1845.1,1844.7,5.4206903]
[1746607471380,6.19496123,1845.1,1844.7,10.84144372]
[1746607472280,6.19496123,1845.1,1844.7,5.4206903]
[1746607472454,5.42005907,1845.0,1844.6,10.84214734]
[1746607472773,7.68794653,1845.0,1844.6,5.42104574]
[1746607473552,0.7742,1844.9,1844.6,5.42104574]
[1746607474576,0.7742,1844.9,1844.5,5.42134345]
[1746607474577,6.1946464,1844.9,1844.5,5.42134345]
[1746607474888,0.7742,1844.9,1844.6,5.42119522]
[1746607479112,6.19456646,1844.9,1844.6,5.42119522]
[1746607480097,6.19456646,1844.9,1844.6,5.42121797]
[1746607480298,5.42064841,1844.8,1844.4,5.42161505]
[1746607481299,0.832,1844.7,1844.4,5.42161505]
[1746607481497,7.68932996,1844.6,1844.2,9.33382428]
[1746607481666,7.68932996,1844.6,1844.2,14.75608931]
[1746607481962,7.68932996,1844.6,1844.2,14.95859142]
[1746607484108,7.68932996,1844.6,1844.2,11.31576714]
[1746607484604,7.68932996,1844.6,1844.3,18.0]
[1746607485110,0.8,1844.4,1844.3,18.0]
[1746607489907,0.8,1844.4,1844.2,5.42238465]
[1746607490810,0.8,1844.4,1844.1,5.4767269]
[1746607491889,0.8,1844.4,1844.0,5.42281019]
[1746607492086,6.22202835,1844.4,1844.0,5.42281019]
[1746607492292,6.22202835,1844.4,1844.0,5.47703454]
[1746607492618,6.22202835,1844.4,1844.0,10.89983454]
[1746607493712,6.22202835,1844.4,1844.1,5.42267825]
[1746607494409,6.16202835,1844.4,1844.2,0.12680804]
[1746607494612,0.74,1844.4,1844.2,0.12680804]
[1746607494908,0.74,1844.4,1844.2,5.42240137]
[1746607495095,5.42078912,1844.8,1844.4,5.42164465]
[1746607495481,7.68867658,1844.8,1844.5,0.12540165]
[1746607497117,5.4209847,1844.7,1844.5,0.12540165]
[1746607497595,0.803,1844.6,1844.5,0.12540165]
[1746607498391,8.49211699,1844.6,1844.5,0.12540165]
[1746607498591,9.88342716,1844.6,1844.2,5.42227134]
[1746607498792,8.49211699,1844.6,1844.3,0.1263648]
[1746607498992,6.22422953,1844.6,1844.3,0.1263648]
[1746607499399,6.22422953,1844.6,1844.3,5.54840175]
[1746607499400,0.803,1844.6,1844.3,5.54840175]
[1746607500523,0.803,1844.6,1844.3,10.97036262]
[1746607501224,0.803,1844.6,1844.3,10.97022621]
[1746607501527,0.803,1844.6,1844.3,5.54826534]
[1746607502423,0.803,1844.6,1844.3,10.97017107]
[1746607503320,0.803,1844.6,1844.3,5.54826534]
[1746607503623,0.803,1844.6,1844.3,10.970163]
[1746607504419,6.22430806,1844.6,1844.3,5.54826246]
[1746607504625,9.65673429,1844.6,1844.3,0.1263648]
[1746607505404,5.42169099,1844.5,1844.3,0.1263648]
[1746607505605,4.23542623,1844.6,1843.9,5.691]
[1746607505606,8.47370485,1844.4,1843.9,16.53721903]
[1746607505805,5.42214716,1844.3,1844.0,5.55187398]
[1746607506013,0.784,1844.4,1844.1,5.42269307]
[1746607508045,3.0,1844.6,1844.3,5.54887873]
[1746607508239,3.8282,1844.7,1844.4,5.42174788]
[1746607508593,3.8282,1844.7,1844.5,0.12536325]
[1746607508793,9.24916399,1844.7,1844.5,0.12536325]
[1746607509234,9.24916399,1844.7,1844.3,5.48191511]
[1746607509433,9.24916399,1844.7,1844.6,0.12465094]
[1746607509634,9.24916399,1844.7,1844.3,5.48191511]
[1746607509929,9.24916399,1844.7,1844.6,0.12465094]
[1746607510096,9.24916399,1844.7,1844.3,5.48191511]
[1746607510296,9.24916399,1844.7,1844.6,0.12465094]
[1746607510498,9.24916399,1844.7,1844.3,5.48191511]
[1746607510747,9.24916399,1844.7,1844.6,0.12465094]
[1746607510915,7.68864047,1844.8,1844.4,5.42166991]
[1746607511105,2.26788746,1844.8,1844.6,0.12465094]
[1746607511324,3.0,1844.8,1844.5,5.54652597]
[1746607511525,3.0,1844.8,1844.7,0.12359246]
[1746607511705,8.42093565,1844.7,1844.6,0.12430468]
[1746607511909,8.42093565,1844.7,1844.3,5.617]
[1746607511910,9.17339759,1844.6,1844.3,5.617]
[1746607516730,9.17339759,1844.6,1844.3,11.03909043]
[1746607517326,0.7851,1844.8,1844.5,5.42133339]
[1746607517552,0.7851,1845.0,1844.6,5.96313399]
[1746607517717,3.7851,1845.0,1844.6,5.47520749]
[1746607518133,6.20515496,1845.0,1844.6,5.47520749]
[1746607518332,0.7851,1845.0,1844.6,5.47520749]
[1746607518632,3.7851,1845.0,1844.6,10.8962641]
[1746607518820,3.7851,1845.0,1844.6,5.47520749]
[1746607519221,9.20515658,1845.0,1844.6,10.89623605]
[1746607519633,3.7851,1845.0,1844.7,5.42083498]
[1746607519849,3.7851,1845.0,1844.7,10.84154621]
[1746607520049,3.7851,1845.0,1844.8,5.42042913]
[1746607520262,3.0,1845.1,1844.8,5.4204921]
[1746607520465,0.7851,1845.2,1844.8,0.05420347]
[1746607520645,0.7851,1845.2,1844.9,5.42010713]
[1746607520863,6.05298746,1845.2,1844.9,5.42031918]
[1746607521765,6.05298746,1845.2,1844.9,10.84050313]
[1746607521965,3.05298746,1845.2,1844.9,5.42018395]
[1746607522269,3.05298746,1845.2,1845.0,5.42002571]
[1746607522442,2.26788746,1845.2,1845.0,5.42002571]
[1746607523044,2.26788746,1845.2,1844.9,5.4802314]
[1746607523376,2.26788746,1845.2,1844.9,5.48014535]
[1746607523583,2.26788746,1845.2,1845.0,5.42001035]
[1746607523886,2.26788746,1845.2,1845.0,5.41997292]
[1746607525447,2.26788746,1845.2,1844.9,5.48016021]
[1746607526745,2.26788746,1845.2,1844.9,10.9003109]
[1746607527483,2.26788746,1845.2,1845.0,5.420018]
[1746607529406,2.26788746,1845.2,1844.9,5.48016443]
[1746607529697,2.26788746,1845.2,1844.9,5.48015026]
[1746607530199,2.26788746,1845.2,1845.0,5.42004753]
[1746607531193,3.0,1845.3,1844.9,5.48017854]
[1746607531358,0.8309,1845.6,1845.0,6.02220659]
[1746607531691,17.48574182,1845.8,1845.4,5.41872412]
[1746607531891,3.0,1845.7,1845.4,5.41872412]
[1746607532573,8.41800599,1845.7,1845.3,5.41895909]
[1746607532764,8.41800599,1845.7,1845.3,10.83793676]
[1746607532966,3.0,1845.7,1845.4,5.41886598]
[1746607533299,8.41802275,1845.7,1845.4,5.41886598]
[1746607533509,8.41802275,1845.7,1845.3,5.41899285]
[1746607533666,8.41802275,1845.7,1845.3,10.83797493]
[1746607534002,8.41802275,1845.7,1845.4,5.41886617]
[1746607534224,8.51649894,1845.8,1845.3,5.41897307]
[1746607534225,3.09878746,1845.8,1845.3,5.41917303]
[1746607534502,3.09878746,1845.8,1845.5,5.41840957]
[1746607534672,3.09878746,1845.8,1845.6,5.41828949]
[1746607534861,3.09878746,1845.8,1845.5,5.41842706]
[1746607536905,3.09878746,1845.8,1845.4,5.41873148]
[1746607537092,8.51661555,1845.8,1845.4,5.41868353]
[1746607537265,3.09878746,1845.8,1845.5,5.41857365]
[1746607538097,8.51658668,1845.8,1845.4,5.41871106]
[1746607538393,3.025,1845.9,1845.5,5.47845949]
[1746607538695,3.025,1845.9,1845.6,5.41818025]
[1746607539374,3.025,1845.9,1845.6,10.83627297]
[1746607539576,3.025,1845.9,1845.6,5.41809272]
[1746607540260,3.025,1845.9,1845.6,5.41806968]
[1746607540601,0.025,1845.9,1845.7,5.41797821]
[1746607541696,0.025,1845.9,1845.7,10.83577038]
[1746607541899,0.025,1845.9,1845.7,5.41779217]
[1746607542067,0.025,1845.9,1845.8,5.41770506]
[1746607544702,0.025,1845.9,1845.8,4.91770506]
[1746607546673,0.025,1845.9,1845.7,5.4177951]
[1746607546881,3.02788746,1845.8,1845.6,5.41813345]
[1746607547201,3.02788746,1845.8,1845.4,5.41866146]
[1746607547366,3.02788746,1845.8,1845.5,10.83668916]
[1746607547704,3.02788746,1845.8,1845.6,5.41824951]
[1746607548470,0.76,1845.8,1845.6,5.41824951]
[1746607549669,0.76,1845.8,1845.5,5.41834458]
[1746607550069,6.17772111,1845.8,1845.4,5.41876631]
[1746607550271,5.41806434,1845.7,1845.3,11.04805831]
[1746607550680,9.60781379,1845.8,1845.4,5.4188791]
[1746607550869,7.33992633,1845.8,1845.4,10.83755256]
[1746607551071,9.60781379,1845.8,1845.4,5.47285539]
[1746607551410,9.60781379,1845.8,1845.4,5.41867346]
[1746607551609,1.16202996,1845.8,1845.5,0.06]
[1746607551783,0.025,1845.9,1845.7,5.41771126]
[1746607552169,0.025,1845.9,1845.7,10.83552503]
[1746607552369,0.025,1845.9,1845.8,5.41770506]
[1746607552570,0.025,1845.9,1845.8,5.47187911]
[1746607552765,0.025,1845.9,1845.8,5.41770506]
[1746607553809,0.025,1845.9,1845.7,5.41771126]
[1746607554108,0.025,1845.9,1845.7,23.41771126]
[1746607554631,0.025,1845.9,1845.7,28.8354801]
[1746607554929,0.025,1845.9,1845.7,5.41771126]
[1746607555337,0.025,1845.9,1845.8,5.41770506]
[1746607555691,0.025,1845.9,1845.8,5.4718755]
[1746607557135,0.025,1845.9,1845.8,5.41770506]
[1746607558131,0.025,1845.9,1845.8,5.47187531]
[1746607559328,0.025,1845.9,1845.8,5.41770506]
[1746607561335,0.025,1845.9,1845.8,5.97187093]
[1746607562124,0.025,1845.9,1845.8,5.47187093]
[1746607563850,0.025,1845.9,1845.8,5.41770506]
[1746607564505,0.025,1845.9,1845.8,5.4718739]
[1746607565440,0.025,1845.9,1845.8,5.41770506]
[1746607565936,0.025,1845.9,1845.7,23.41771126]
[1746607566134,0.025,1845.9,1845.7,28.83554677]
[1746607566314,0.025,1845.9,1845.7,23.41771126]
[1746607566845,0.7896,1845.8,1845.7,18.0]
[1746607567345,0.025,1845.9,1845.7,23.41799859]
[1746607567860,0.8564,1845.9,1845.7,18.0]
[1746607568038,1.71054252,1845.9,1845.7,18.0]
[1746607569369,1.71054252,1845.9,1845.7,23.41798884]
[1746607569540,1.71054252,1845.9,1845.7,18.0]
[1746607569872,2.26788746,1845.8,1845.7,18.0]
[1746607570073,3.02898746,1845.8,1845.7,18.0]
[1746607570283,3.87614265,1845.8,1845.7,18.0]
[1746607570489,9.29384771,1845.8,1845.7,18.0]
[1746607575876,9.29384771,1845.8,1845.4,5.41887932]
[1746607576678,5.41800488,1845.7,1845.3,5.47315708]
[1746607576878,5.41800488,1845.7,1845.3,5.41897246]
[1746607577077,6.88919014,1845.7,1845.4,5.41887282]
[1746607577278,0.7985,1845.6,1845.4,5.41885028]
[1746607577579,9.33124771,1845.8,1845.4,5.41885028]
[1746607577875,14.74917257,1845.8,1845.4,5.41885028]
[1746607578085,5.41822483,1845.7,1845.3,5.41895959]
[1746607578382,6.35117534,1845.7,1845.3,5.41895959]
[1746607578944,5.41832357,1845.6,1845.2,5.47931037]
[1746607579265,5.41832357,1845.6,1845.3,5.91914654]
[1746607579964,5.41832357,1845.6,1845.3,5.97333126]